bitfinex/quotes_BTCUSD_20260308
["timestamp","ask_amount","ask_price","bid_price","bid_amount"]
[1772930955941,0.07443134,67177.0,67166.0,0.00466428]
[1772930957333,0.07442912,67180.0,67168.0,0.00466428]
[1772930958338,0.07442912,67180.0,67169.0,0.00466428]
[1772930958551,0.07442912,67180.0,67170.0,0.00614428]
[1772930960752,0.07442137,67185.0,67172.0,0.00466428]
[1772930962868,0.07442137,67185.0,67173.0,0.07443466]
[1772930963069,0.00488173,67184.0,67173.0,0.07443466]
[1772930964528,0.00488173,67184.0,67172.0,0.07909991]
[1772930965052,0.07930531,67183.0,67171.0,0.07443688]
[1772930965248,0.07442358,67183.0,67171.0,0.07443688]
[1772930965554,0.00488173,67182.0,67171.0,0.07443688]
[1772930967262,0.0744258,67181.0,67171.0,0.07443688]
[1772930969165,0.07442137,67185.0,67171.0,0.07443688]
[1772930969545,0.00488173,67184.0,67171.0,0.07443688]
[1772930971445,0.07442358,67183.0,67172.0,0.00466428]
[1772930971874,0.04928601,67183.0,67174.0,0.00466428]
[1772930972179,0.07442358,67183.0,67176.0,0.00466428]
[1772930972413,0.07442358,67183.0,67177.0,0.00148]
[1772930972588,0.00463008,67188.0,67172.0,0.00466428]
[1772930972786,0.00463008,67188.0,67171.0,0.07443688]
[1772930972787,0.00463008,67188.0,67174.0,0.00466428]
[1772930973195,0.02325757,67187.0,67171.0,0.07443688]
[1772930973335,0.07442358,67183.0,67175.0,0.00148]
[1772930973541,0.02325757,67179.0,67175.0,0.00148]
[1772930973756,0.0281393,67179.0,67176.0,0.00148]
[1772930973992,0.00200027,67182.0,67176.0,0.00148]
[1772930974716,0.02525784,67182.0,67176.0,0.00148]
[1772930978540,0.0744203,67186.0,67177.0,0.07443023]
[1772930978961,0.0744203,67186.0,67178.0,0.00458382]
[1772930980079,0.00463008,67188.0,67178.0,0.00458382]
[1772930980518,0.00463008,67188.0,67179.0,0.07442802]
[1772930980639,0.00463008,67188.0,67180.0,0.00458382]
[1772930982374,0.07463111,67195.0,67180.0,0.00458382]
[1772930982670,0.07463111,67195.0,67182.0,0.00458382]
[1772930982865,0.07463111,67195.0,67183.0,0.00148]
[1772930983969,0.09789098,67193.0,67183.0,0.00148]
[1772930985399,0.02347758,67193.0,67184.0,0.07442248]
[1772930987019,0.09789038,67193.0,67185.0,0.00148]
[1772930987429,0.09789038,67193.0,67186.0,0.07442026]
[1772930987858,0.02325757,67192.0,67186.0,0.07442026]
[1772930988192,0.02337777,67192.0,67186.0,0.07442026]
[1772930988366,0.02325757,67190.0,67172.0,0.07901848]
[1772930988681,0.00459926,67189.0,67173.0,0.00148]
[1772930989533,0.00459926,67189.0,67176.0,0.0002]
[1772930990579,0.07441805,67188.0,67176.0,0.0002]
[1772930992580,0.07453399,67192.0,67177.0,0.02416961]
[1772930992780,0.07453399,67192.0,67178.0,0.00458382]
[1772930993103,0.07453399,67192.0,67180.0,0.00458382]
[1772930994753,0.07463255,67193.0,67184.0,0.00458382]
[1772930994754,0.00022001,67193.0,67184.0,0.00458382]
[1772930994994,0.00022001,67193.0,67185.0,0.00606382]
[1772930995164,0.07463276,67193.0,67185.0,0.00606382]
[1772930995568,0.00022001,67193.0,67185.0,0.00606382]
[1772930996753,0.00022001,67193.0,67186.0,0.07442026]
[1772930997640,0.00022001,67192.0,67186.0,0.07442026]
[1772930999389,0.00022001,67194.0,67187.0,0.00458382]
[1772931000687,0.0001508,67197.0,67189.0,0.00458382]
[1772931001093,0.0001508,67197.0,67191.0,0.00458382]
[1772931001280,0.0001508,67197.0,67192.0,0.00148]
[1772931001483,0.00022001,67199.0,67192.0,0.00148]
[1772931003062,0.00022001,67199.0,67193.0,0.07441251]
[1772931005054,0.01318513,67199.0,67193.0,0.07441251]
[1772931005636,0.01226233,67205.0,67193.0,0.07441251]
[1772931006293,0.01874489,67205.0,67193.0,0.07441251]
[1772931010224,0.00041811,67208.0,67194.0,0.0238975]
[1772931011173,0.08108757,67212.0,67194.0,0.0238975]
[1772931011174,0.00669557,67212.0,67194.0,0.0238975]
[1772931011595,0.00022001,67213.0,67195.0,1.196479]
[1772931011813,0.00022001,67217.0,67198.0,0.0238975]
[1772931012124,0.00022001,67217.0,67201.0,0.07440365]
[1772931012298,0.00022001,67217.0,67201.0,0.09830115]
[1772931012705,0.00022001,67217.0,67201.0,0.07440365]
[1772931013110,0.07460604,67217.0,67201.0,0.07440365]
[1772931013307,0.00022001,67212.0,67201.0,0.07440365]
[1772931013641,0.00022001,67212.0,67202.0,0.00166268]
[1772931014174,0.00022001,67217.0,67202.0,0.00166268]
[1772931014175,0.00022001,67217.0,67204.0,0.0238975]
[1772931014401,0.00022001,67217.0,67205.0,0.00148]
[1772931015593,0.00034028,67217.0,67206.0,0.00166258]
[1772931017632,0.00022001,67219.0,67207.0,0.07439701]
[1772931017812,0.00022001,67222.0,67208.0,0.02556052]
[1772931018016,0.00691558,67222.0,67208.0,0.02556052]
[1772931018218,0.00669557,67220.0,67208.0,0.00166302]
[1772931019831,0.00669557,67220.0,67209.0,0.07439479]
[1772931020052,0.00669557,67220.0,67210.0,0.00148]
[1772931020229,0.00022001,67217.0,67210.0,0.00148]
[1772931020653,0.00022001,67217.0,67209.0,0.00148]
[1772931020868,0.00034021,67217.0,67194.0,0.09830815]
[1772931021075,0.00034021,67217.0,67195.0,0.00148]
[1772931021279,0.0254123,67215.0,67194.0,0.09830815]
[1772931021614,0.00636326,67212.0,67196.0,0.00148]
[1772931021783,0.0254123,67211.0,67197.0,0.00148]
[1772931021982,0.00636326,67210.0,67197.0,0.00148]
[1772931022337,0.00636326,67210.0,67194.0,0.228422]
[1772931022540,0.00636326,67210.0,67195.0,0.00148]
[1772931022990,0.00636326,67210.0,67196.0,0.00148]
[1772931023352,0.00636326,67210.0,67197.0,0.00148]
[1772931023770,0.00636326,67210.0,67193.0,0.0746114]
[1772931023973,0.00636326,67210.0,67194.0,0.128281]
[1772931024180,0.00636326,67210.0,67194.0,0.00148]
[1772931024502,0.00636326,67210.0,67196.0,0.07440919]
[1772931025018,0.07438727,67216.0,67197.0,0.00148]
[1772931025227,0.07438346,67220.0,67200.0,0.0238975]
[1772931025429,0.07438268,67220.0,67200.0,0.0238975]
[1772931025579,0.07438408,67219.0,67200.0,0.0238975]
[1772931025780,0.07438408,67219.0,67201.0,0.00148]
[1772931025982,0.07438408,67219.0,67202.0,0.0238975]
[1772931026538,0.00037001,67224.0,67202.0,0.0238975]
[1772931026539,0.00037001,67224.0,67204.0,0.0238975]
[1772931026830,0.00037001,67224.0,67204.0,0.0240177]
[1772931027025,0.08111158,67224.0,67204.0,0.0240177]
[1772931027256,0.00636326,67223.0,67204.0,0.0240177]
[1772931027406,0.00022001,67217.0,67204.0,0.0240177]
[1772931028540,0.00022001,67217.0,67205.0,0.07439922]
[1772931029138,0.00022001,67217.0,67205.0,0.09829672]
[1772931030958,0.00022001,67217.0,67206.0,0.0238975]
[1772931031275,0.00022001,67217.0,67207.0,0.00148]
[1772931032706,0.07474832,67224.0,67208.0,0.0743959]
[1772931032908,0.00636326,67223.0,67208.0,0.0743959]
[1772931033911,0.00636326,67223.0,67208.0,0.0990411]
[1772931034310,0.00022001,67220.0,67208.0,0.0990411]
[1772931034512,0.00062001,67225.0,67209.0,0.00363673]
[1772931034918,0.00062001,67225.0,67212.0,0.00363673]
[1772931035232,0.00062001,67225.0,67213.0,0.00511673]
[1772931036461,0.00062001,67225.0,67213.0,0.00148]
[1772931036969,0.00062001,67225.0,67214.0,0.07438926]
[1772931037102,0.00554194,67225.0,67214.0,0.07438926]
[1772931043250,0.02390452,67222.0,67214.0,0.00148]
[1772931043399,0.02390452,67218.0,67201.0,0.07440152]
[1772931043605,0.00496061,67215.0,67202.0,0.00148]
[1772931043801,0.02390452,67212.0,67203.0,0.00148]
[1772931044050,0.00496061,67210.0,67203.0,0.00148]
[1772931044640,0.00496061,67210.0,67201.0,0.07440152]
[1772931044840,0.00496061,67210.0,67204.0,0.00148]
[1772931045043,0.00496061,67209.0,67204.0,0.00148]
[1772931045273,0.00496061,67209.0,67204.0,0.07588019]
[1772931045469,0.00496061,67208.0,67200.0,0.07624236]
[1772931045669,0.00496061,67208.0,67201.0,0.00148]
[1772931046070,0.00496061,67208.0,67200.0,0.07476236]
[1772931046277,0.00496061,67208.0,67201.0,0.00148]
[1772931046640,0.00496061,67208.0,67200.0,0.07476236]
[1772931046839,0.00496061,67208.0,67201.0,0.00148]
[1772931047061,0.00496061,67208.0,67202.0,0.07440254]
[1772931047270,0.00496061,67208.0,67203.0,0.00148]
[1772931048475,0.07439099,67213.0,67203.0,0.00148]
[1772931048787,0.0793516,67213.0,67203.0,0.00148]
[1772931049503,0.07439099,67213.0,67204.0,0.07440033]
[1772931049707,0.00496061,67212.0,67204.0,0.07440033]
[1772931052470,0.0793529,67212.0,67205.0,0.00148]
[1772931054082,0.00496061,67211.0,67207.0,0.00015]
[1772931057077,0.00496061,67210.0,67207.0,0.00015]
[1772931061362,0.00496061,67209.0,67208.0,0.00148]
[1772931062349,0.00496061,67209.0,67201.0,0.07460289]
[1772931062544,0.00496061,67209.0,67202.0,0.00148]
[1772931062961,0.00496061,67209.0,67203.0,0.00148]
[1772931063404,0.00496061,67209.0,67201.0,0.07460289]
[1772931063915,0.00496061,67209.0,67202.0,0.00148]
[1772931064321,0.00518062,67209.0,67203.0,0.00148]
[1772931064727,0.00518062,67209.0,67201.0,0.07460289]
[1772931064927,0.00518062,67209.0,67204.0,0.00148]
[1772931065590,0.00518062,67209.0,67205.0,0.00148]
[1772931066326,0.00518062,67209.0,67206.0,0.00148]
[1772931066680,0.00518062,67209.0,67207.0,0.00148]
[1772931067204,0.00518062,67209.0,67208.0,0.00148]
[1772931067910,0.00518062,67209.0,67201.0,0.07460289]
[1772931068114,0.00518062,67209.0,67202.0,0.00148]
[1772931068516,0.00518062,67209.0,67203.0,0.00148]
[1772931068974,0.00518062,67209.0,67201.0,0.07460289]
[1772931069118,0.00518062,67209.0,67204.0,0.00148]
[1772931069530,0.00518062,67209.0,67205.0,0.00148]
[1772931069915,0.00518062,67209.0,67201.0,0.07460289]
[1772931070110,0.00518062,67209.0,67202.0,0.00148]
[1772931070522,0.07957576,67209.0,67203.0,0.00148]
[1772931070977,0.07957576,67209.0,67201.0,0.07460289]
[1772931071308,0.00458816,67207.0,67197.0,0.07440783]
[1772931071447,0.00458816,67205.0,67198.0,0.00148]
[1772931071665,0.00458816,67205.0,67197.0,0.07440783]
[1772931071962,0.07461515,67209.0,67194.0,0.0002]
[1772931071963,0.02264899,67202.0,67194.0,0.0002]
[1772931072164,0.00458816,67199.0,67195.0,0.00148]
[1772931072365,0.00458816,67199.0,67196.0,0.00148]
[1772931072909,0.00458816,67199.0,67190.0,0.07441501]
[1772931072910,0.00458816,67198.0,67190.0,0.07441501]
[1772931073157,0.00458816,67197.0,67196.0,0.00148]
[1772931076656,0.07440634,67199.0,67196.0,0.00148]
[1772931076851,0.00458816,67198.0,67196.0,0.00148]
[1772931077498,0.00458816,67198.0,67194.0,0.0002]
[1772931077803,0.00458816,67198.0,67195.0,0.00148]
[1772931078976,0.00458816,67198.0,67194.0,0.0002]
[1772931079182,0.00458816,67198.0,67195.0,0.00148]
[1772931079386,0.02264899,67198.0,67196.0,0.00148]
[1772931079587,0.00458816,67197.0,67196.0,0.00148]
[1772931079794,0.00458816,67197.0,67189.0,0.07460516]
[1772931080124,0.00458816,67197.0,67190.0,0.00148]
[1772931080308,0.00458816,67197.0,67189.0,0.07460516]
[1772931080505,0.00458816,67197.0,67190.0,0.00148]
[1772931080875,0.00458816,67197.0,67191.0,0.00148]
[1772931081084,0.00458816,67197.0,67192.0,0.07441362]
[1772931081534,0.00458816,67197.0,67193.0,0.00148]
[1772931081939,0.00458816,67197.0,67192.0,0.07441362]
[1772931082248,0.00458816,67197.0,67193.0,0.00148]
[1772931082665,0.00458816,67197.0,67194.0,0.00148]
[1772931083164,0.00458816,67197.0,67195.0,0.00148]
[1772931083563,0.00458816,67197.0,67191.0,0.07441441]
[1772931083796,0.00458816,67197.0,67190.0,0.07441583]
[1772931083969,0.02264899,67196.0,67191.0,0.00148]
[1772931084176,0.07440808,67197.0,67191.0,0.00148]
[1772931084177,0.00458816,67194.0,67191.0,0.00148]
[1772931084387,0.00458816,67194.0,67192.0,0.00148]
[1772931085010,0.00458816,67194.0,67193.0,0.00148]
[1772931085825,0.07899956,67194.0,67193.0,0.00148]
[1772931086399,0.07899956,67194.0,67190.0,0.00015]
[1772931086602,0.07899956,67194.0,67193.0,0.00148]
[1772931087226,0.0744114,67194.0,67168.0,0.0001904]
[1772931087393,0.02264899,67191.0,67170.0,0.07463798]
[1772931087597,0.02264899,67186.0,67170.0,0.07463798]
[1772931087795,0.00458816,67183.0,67177.0,0.0002]
[1772931090151,0.00458816,67181.0,67177.0,0.0002]
[1772931091105,0.07442469,67182.0,67177.0,0.00510834]
[1772931091280,0.07441694,67189.0,67177.0,0.0002]
[1772931094002,0.07608007,67189.0,67177.0,0.0002]
[1772931094394,0.08066823,67189.0,67177.0,0.0002]
[1772931095504,0.0790051,67189.0,67177.0,0.0002]
[1772931097672,0.00166313,67188.0,67177.0,0.0002]
[1772931099638,0.04975094,67190.0,67182.0,0.0232852]
[1772931099832,0.02508605,67190.0,67183.0,0.00622588]
[1772931100105,0.02508605,67190.0,67183.0,0.00605727]
[1772931100258,0.00602548,67198.0,67183.0,0.00605727]
[1772931100259,0.0744953,67194.0,67183.0,0.00605727]
[1772931100467,0.07449576,67194.0,67183.0,0.00605727]
[1772931101695,0.07449576,67194.0,67184.0,0.07442248]
[1772931101696,8.343e-05,67194.0,67184.0,0.07442248]
[1772931101905,8.343e-05,67194.0,67184.0,0.07590248]
[1772931105047,0.07449483,67194.0,67184.0,0.07590248]
[1772931106658,0.07440697,67198.0,67187.0,0.0049145]
[1772931106861,0.07440697,67198.0,67187.0,0.00499793]
[1772931107453,0.07440697,67198.0,67188.0,0.07933255]
[1772931107993,0.00022001,67194.0,67188.0,0.07933255]
[1772931108413,0.07440697,67198.0,67188.0,0.07933255]
[1772931113491,0.07440697,67198.0,67188.0,0.07916393]
[1772931113650,0.07440697,67198.0,67188.0,0.07899532]
[1772931114480,0.07440697,67198.0,67188.0,0.07882673]
[1772931116168,0.07462617,67199.0,67188.0,0.07882673]
[1772931116999,0.07462617,67199.0,67188.0,0.07391223]
[1772931117177,0.07462617,67199.0,67189.0,0.0049145]
[1772931117380,0.07462617,67199.0,67190.0,0.00148]
[1772931119396,0.07462617,67199.0,67191.0,0.07441472]
[1772931119619,0.00454548,67197.0,67187.0,8.343e-05]
[1772931119934,0.00454548,67194.0,67190.0,0.00148]
[1772931121478,0.00454548,67194.0,67190.0,0.07589497]
[1772931121627,0.07440928,67196.0,67190.0,0.07572638]
[1772931122846,0.0789529,67198.0,67190.0,0.07572638]
[1772931123360,0.07440808,67197.0,67190.0,0.07572638]
[1772931124677,0.00022001,67206.0,67190.0,0.07441497]
[1772931124875,0.07439922,67205.0,67193.0,0.00460045]
[1772931125056,0.07439922,67205.0,67194.0,0.00460045]
[1772931126552,0.07461892,67206.0,67194.0,0.00460045]
[1772931126752,0.07461892,67206.0,67196.0,0.00460045]
[1772931126753,0.07461813,67206.0,67196.0,0.00460045]
[1772931126891,0.00022001,67206.0,67197.0,0.07588808]
[1772931127093,0.00022001,67206.0,67197.0,0.07571951]
[1772931127701,0.07226714,67207.0,67197.0,0.07571951]
[1772931128044,0.07686639,67207.0,67197.0,0.07571951]
[1772931129326,0.00022001,67205.0,67197.0,0.07571951]
[1772931132566,0.07462001,67205.0,67197.0,0.07571951]
[1772931133941,0.00022001,67205.0,67197.0,0.07571951]
[1772931138331,0.00022001,67205.0,67197.0,0.0805113]
[1772931138933,0.00022001,67208.0,67198.0,0.00479179]
[1772931139135,0.07461658,67208.0,67199.0,0.00479179]
[1772931139724,0.07461658,67208.0,67197.0,0.07571951]
[1772931143235,0.07461658,67208.0,67197.0,0.07591951]
[1772931145631,0.07461658,67208.0,67197.0,0.00168]
[1772931146383,0.07461658,67208.0,67198.0,0.00148]
[1772931146384,0.00484532,67206.0,67198.0,0.00148]
[1772931146609,0.00484532,67205.0,67198.0,0.00148]
[1772931147645,0.07440033,67204.0,67198.0,0.00148]
[1772931154176,0.07456063,67204.0,67198.0,0.00148]
[1772931157477,0.07456063,67204.0,67197.0,0.0002]
[1772931157654,0.00484532,67203.0,67191.0,0.00148]
[1772931158201,0.00500562,67203.0,67191.0,0.00148]
[1772931160276,0.07440254,67202.0,67191.0,0.00148]
[1772931160478,0.07440254,67202.0,67192.0,0.00454202]
[1772931161108,0.07456284,67202.0,67192.0,0.00454202]
[1772931162076,0.07456284,67202.0,67193.0,0.00148]
[1772931162866,0.0001603,67202.0,67193.0,0.00148]
[1772931167501,0.0001603,67202.0,67193.0,0.00602202]
[1772931170273,0.0001603,67202.0,67193.0,0.00622202]
[1772931171903,0.00471149,67199.0,67179.0,0.0002]
[1772931172106,0.02252458,67196.0,67179.0,0.0002]
[1772931172307,0.00471149,67194.0,67184.0,0.00148]
[1772931172651,0.00471149,67194.0,67185.0,0.00148]
[1772931173187,0.07441251,67193.0,67185.0,0.00148]
[1772931176765,0.07441251,67193.0,67185.0,0.00168]
[1772931177356,0.02252458,67191.0,67176.0,8.39e-05]
[1772931177557,0.00471149,67188.0,67171.0,0.0002]
[1772931177757,0.00471149,67184.0,67171.0,0.0002]
[1772931177958,0.02252458,67181.0,67171.0,0.00168]
[1772931178129,0.07442912,67178.0,67171.0,0.00168]
[1772931178485,0.00471149,67177.0,67170.0,0.0016021]
[1772931178688,0.00471149,67177.0,67170.0,0.0001221]
[1772931178891,0.00471149,67176.0,67167.0,0.00962432]
[1772931179033,0.02252458,67176.0,67167.0,0.00962432]
[1772931179241,0.00471149,67173.0,67162.0,0.00148]
[1772931180218,0.00010134,67176.0,67162.0,0.00148]
[1772931180360,0.07443577,67174.0,67163.0,0.00454202]
[1772931180702,0.07442802,67179.0,67166.0,0.02183854]
[1772931180847,0.07442802,67179.0,67168.0,0.00454202]
[1772931181048,0.07442802,67179.0,67170.0,0.00454202]
[1772931182305,0.07455012,67180.0,67170.0,0.00454202]
[1772931183961,0.07455012,67180.0,67170.0,0.00474202]
[1772931184554,0.0001221,67180.0,67170.0,0.00474202]
[1772931189832,0.0001221,67180.0,67173.0,0.00015]
[1772931190867,0.00034211,67180.0,67173.0,0.00015]
[1772931191556,0.24985,67173.0,67170.0,0.00474202]
[1772931191755,0.24985,67173.0,67171.0,0.02108069]
[1772931191756,0.15381071,67173.0,67171.0,0.02108069]
[1772931191956,0.15381071,67173.0,67172.0,0.00484431]
[1772931193792,0.00034211,67180.0,67172.0,0.00484431]
[1772931193793,0.07476958,67180.0,67172.0,0.00484431]
[1772931193992,0.07476958,67180.0,67172.0,0.02108069]
[1772931194289,0.07476958,67180.0,67173.0,0.00484431]
[1772931195342,0.00034211,67180.0,67173.0,0.00484431]
[1772931195557,0.07442575,67183.0,67174.0,0.00484431]
[1772931196023,0.07442575,67183.0,67174.0,0.07443352]
[1772931196240,0.07442575,67183.0,67175.0,0.00484431]
[1772931196665,0.0001221,67186.0,67176.0,0.00148]
[1772931196813,0.0003003,67186.0,67180.0,0.00484431]
[1772931197038,0.07441919,67187.0,67180.0,0.00484431]
[1772931198092,0.0746392,67187.0,67180.0,0.07927034]
[1772931204946,0.0746392,67187.0,67180.0,0.07927052]
[1772931205611,0.0746392,67187.0,67180.0,0.00484431]
[1772931206269,0.0746392,67187.0,67180.0,0.07927096]
[1772931206838,0.0746392,67187.0,67180.0,0.00484431]
[1772931207566,0.0746392,67187.0,67180.0,0.07927104]
[1772931207895,0.0746392,67187.0,67180.0,0.07927118]
[1772931208825,0.07441885,67188.0,67179.0,0.02108069]
[1772931208977,0.07441885,67188.0,67178.0,0.07442691]
[1772931208978,0.05120634,67188.0,67181.0,0.00484431]
[1772931210985,0.00015,67190.0,67181.0,0.00484431]
[1772931211176,0.00022001,67187.0,67181.0,0.00484431]
[1772931212123,0.00483189,67186.0,67168.0,0.00484431]
[1772931212276,0.00483189,67182.0,67169.0,0.00148]
[1772931212476,0.02236712,67180.0,67169.0,0.00148]
[1772931212679,0.02236712,67179.0,67169.0,0.00148]
[1772931212873,0.07443023,67177.0,67164.0,0.07458077]
[1772931213081,0.07443023,67177.0,67167.0,0.00148]
[1772931213321,0.07926212,67177.0,67167.0,0.00148]
[1772931213746,0.07926212,67177.0,67164.0,0.07458077]
[1772931213905,0.07926212,67177.0,67167.0,0.00148]
[1772931215055,0.07926212,67177.0,67166.0,0.0018002]
[1772931215191,0.07443023,67177.0,67166.0,0.0018002]
[1772931215397,0.00483189,67176.0,67166.0,0.0003202]
[1772931215598,0.00483189,67176.0,67166.0,0.0018002]
[1772931216000,0.00483189,67176.0,67167.0,0.00148]
[1772931216447,0.00483189,67176.0,67166.0,0.0003202]
[1772931216647,0.00483189,67174.0,67166.0,0.0003202]
[1772931217846,0.07443466,67173.0,67166.0,0.0003202]
[1772931220672,0.00497118,67172.0,67164.0,0.0001367]
[1772931220875,0.00497118,67172.0,67164.0,0.00023804]
[1772931221663,0.00497118,67172.0,67163.0,0.0002]
[1772931221914,0.00497118,67170.0,67160.0,0.00723]
[1772931222117,0.00497118,67170.0,67160.0,0.08167896]
[1772931224293,0.0744391,67169.0,67160.0,0.08167896]
[1772931224494,0.0744391,67169.0,67160.0,0.0816789]
[1772931225354,0.0744391,67169.0,67160.0,0.0818789]
[1772931225480,0.0744391,67169.0,67160.0,0.0803989]
[1772931225686,0.07941028,67169.0,67160.0,0.00595]
[1772931225981,0.07941028,67169.0,67160.0,0.08039801]
[1772931229114,0.0744391,67169.0,67160.0,0.08039801]
[1772931229651,0.0744391,67169.0,67160.0,0.00595]
[1772931230029,0.0744391,67169.0,67160.0,0.08039855]
[1772931230411,0.07443688,67171.0,67160.0,0.08039855]
[1772931230615,0.07940806,67171.0,67160.0,0.08039855]
[1772931231462,0.07443688,67171.0,67160.0,0.08039855]
[1772931231842,0.07443688,67171.0,67160.0,0.0852905]
[1772931235581,0.07443688,67171.0,67160.0,0.08039855]
[1772931235790,0.07443688,67171.0,67161.0,0.00489195]
[1772931238292,0.07465689,67171.0,67162.0,0.07444685]
[1772931239324,0.07464153,67185.0,67162.0,0.07444685]
[1772931239521,0.07443023,67177.0,67165.0,0.0230895]
[1772931239780,0.07443023,67177.0,67167.0,0.00824644]
[1772931240727,0.07443023,67177.0,67168.0,0.0744402]
[1772931240948,0.07443023,67177.0,67169.0,0.00824644]
[1772931242864,0.07443023,67177.0,67170.0,0.07443799]
[1772931243009,0.07442569,67182.0,67172.0,0.00824644]
[1772931243217,0.07456108,67183.0,67174.0,0.02056374]
[1772931243419,0.07456108,67183.0,67175.0,0.00824644]
[1772931244164,0.07456064,67183.0,67176.0,0.00824644]
[1772931244912,0.07456064,67183.0,67177.0,0.00824644]
[1772931246944,0.00022001,67178.0,67177.0,0.00824644]
[1772931247575,0.00022001,67178.0,67177.0,0.08267667]
[1772931247876,0.07456064,67183.0,67177.0,0.07989397]
[1772931248352,0.07456064,67183.0,67177.0,0.07443023]
[1772931248552,0.0524874,67183.0,67178.0,0.00546374]
[1772931253779,0.0524874,67183.0,67178.0,0.00709688]
[1772931253973,0.0524874,67183.0,67178.0,0.00546374]
[1772931255000,0.05270741,67183.0,67178.0,0.00546374]
[1772931256132,0.02525962,67181.0,67171.0,0.07443676]
[1772931256343,0.02072338,67179.0,67171.0,0.00148]
[1772931256841,0.00163325,67180.0,67170.0,0.00148]
[1772931257023,0.00163325,67182.0,67170.0,0.00148]
[1772931257398,0.0759047,67182.0,67171.0,0.00461715]
[1772931258003,0.07590506,67182.0,67171.0,0.00461715]
[1772931258160,0.07590506,67182.0,67171.0,0.00506595]
[1772931261075,0.07590506,67182.0,67172.0,0.07443577]
[1772931262264,0.07590506,67182.0,67172.0,0.07488457]
[1772931263794,0.07612507,67182.0,67172.0,0.07488457]
[1772931265211,0.00022001,67185.0,67176.0,0.00461715]
[1772931265437,0.00022001,67187.0,67179.0,0.07442802]
[1772931265438,0.07463976,67187.0,67179.0,0.07442802]
[1772931265634,0.07463976,67187.0,67179.0,0.0799862]
[1772931266227,0.00022001,67187.0,67179.0,0.080302]
[1772931266534,0.07463921,67187.0,67180.0,0.00461715]
[1772931267318,0.07463921,67187.0,67180.0,0.00493295]
[1772931267319,0.00022001,67187.0,67180.0,0.00493295]
[1772931269238,0.07626587,67190.0,67182.0,0.00461715]
[1772931269439,0.07478587,67190.0,67182.0,0.00461715]
[1772931270393,0.07478587,67190.0,67182.0,0.00493295]
[1772931271769,0.07478587,67190.0,67182.0,0.07473966]
[1772931272453,0.00022001,67187.0,67182.0,0.07473966]
[1772931273156,0.0048505,67186.0,67180.0,0.00148]
[1772931273412,0.0048505,67186.0,67179.0,0.07590802]
[1772931273725,0.0048505,67186.0,67179.0,0.07442802]
[1772931273928,0.0048505,67185.0,67177.0,0.00148]
[1772931275908,0.00022001,67187.0,67177.0,0.00148]
[1772931276482,0.00022001,67187.0,67178.0,0.00148]
[1772931277863,0.00022001,67187.0,67179.0,0.07442802]
[1772931284332,0.07442026,67186.0,67179.0,0.07442802]
[1772931285093,0.07922372,67186.0,67176.0,0.07456102]
[1772931285289,0.00480346,67185.0,67176.0,0.07456102]
[1772931285992,0.00480346,67185.0,67179.0,0.0002]
[1772931287273,0.07442248,67184.0,67179.0,0.0002]
[1772931287393,0.07922594,67184.0,67179.0,0.0002]
[1772931287608,0.07442248,67184.0,67179.0,0.0002]
[1772931291279,0.07442026,67186.0,67179.0,0.0002]
[1772931292351,0.00037001,67190.0,67179.0,0.0002]
[1772931292539,0.07879355,67198.0,67180.0,0.00497491]
[1772931292743,0.07879355,67198.0,67181.0,0.00497491]
[1772931293095,0.02086486,67197.0,67182.0,0.00878287]
[1772931293438,0.07440919,67196.0,67179.0,0.0002]
[1772931293675,0.02086486,67195.0,67180.0,0.07590469]
[1772931294301,0.00148,67194.0,67181.0,0.00730287]
[1772931294886,0.00148,67196.0,67181.0,0.00730287]
[1772931295618,0.00022001,67193.0,67183.0,0.00730287]
[1772931295840,0.07879355,67198.0,67184.0,0.02096567]
[1772931296015,0.15320065,67198.0,67186.0,0.00730287]
[1772931296225,0.15320065,67198.0,67186.0,0.00878287]
[1772931296796,0.15332092,67198.0,67186.0,0.00878287]
[1772931297052,0.15332092,67198.0,67186.0,0.00730287]
[1772931297216,0.02086486,67197.0,67187.0,0.00148]
[1772931297448,0.07891382,67198.0,67187.0,0.00148]
[1772931297589,0.05664585,67198.0,67189.0,0.00730287]
[1772931298191,0.00012027,67198.0,67189.0,0.00730287]
[1772931298829,0.09539216,67198.0,67188.0,0.00148]
[1772931298998,0.02086486,67197.0,67188.0,0.00148]
[1772931300003,0.07440919,67196.0,67189.0,0.07441694]
[1772931300223,0.07440919,67196.0,67179.0,0.0746273]
[1772931300385,0.02086486,67195.0,67179.0,0.07462767]
[1772931300590,0.02086486,67193.0,67179.0,0.07462767]
[1772931301395,0.02086486,67193.0,67179.0,0.07610767]
[1772931301588,0.02086486,67193.0,67179.0,0.07462767]
[1772931301992,0.02042829,67191.0,67179.0,0.07610767]
[1772931302214,0.02042829,67191.0,67179.0,0.08341054]
[1772931302437,0.02042829,67191.0,67179.0,0.08193054]
[1772931302664,0.02042829,67191.0,67179.0,0.08341054]
[1772931302961,0.02042829,67191.0,67179.0,0.08193054]
[1772931303119,0.02042829,67191.0,67179.0,0.08341054]
[1772931303950,0.07441583,67190.0,67179.0,0.08193054]
[1772931304150,0.02089625,67189.0,67179.0,0.08341054]
[1772931304932,0.02089625,67189.0,67179.0,0.08193054]
[1772931305128,0.02089625,67189.0,67175.0,0.0004]
[1772931305129,0.00148,67188.0,67169.0,0.07477156]
[1772931305350,0.00148,67188.0,67170.0,0.07443756]
[1772931305351,0.02089625,67187.0,67170.0,0.07443756]
[1772931306073,0.07442026,67186.0,67170.0,0.07443756]
[1772931306277,0.02089625,67185.0,67170.0,0.07443756]
[1772931307672,0.02089625,67185.0,67169.0,0.07477148]
[1772931308421,0.02089625,67183.0,67169.0,0.07477148]
[1772931308612,0.07442248,67184.0,67169.0,0.07477148]
[1772931308613,0.00148,67182.0,67169.0,0.07477148]
[1772931308792,0.02237625,67182.0,67169.0,0.07477148]
[1772931310604,0.0744258,67181.0,67169.0,0.07477148]
[1772931311291,0.0744258,67181.0,67173.0,0.00015]
[1772931315344,0.0744258,67181.0,67173.0,0.00035]
[1772931316996,0.02089625,67180.0,67158.0,0.00148]
[1772931317165,0.07442802,67179.0,67158.0,0.00148]
[1772931317363,0.02089625,67178.0,67158.0,0.00148]
[1772931317794,0.02089625,67178.0,67159.0,0.005]
[1772931318681,0.02113725,67178.0,67159.0,0.005]
[1772931320514,0.02089625,67176.0,67159.0,0.005]
[1772931320818,0.02089625,67174.0,67159.0,0.005]
[1772931321655,0.02089625,67174.0,67159.0,0.0054012]
[1772931321850,0.02089625,67174.0,67159.0,0.0056012]
[1772931321851,0.02101425,67174.0,67159.0,0.0056012]
[1772931322893,0.07443466,67173.0,67159.0,0.0056012]
[1772931323877,0.09544891,67173.0,67160.0,0.00148]
[1772931328681,0.09544891,67173.0,67160.0,0.00168]
[1772931330098,0.07455266,67173.0,67161.0,0.00545551]
[1772931330503,0.07455266,67173.0,67162.0,0.00545551]
[1772931331061,0.000118,67173.0,67162.0,0.00545551]